[Event "Open international de Salon de Provence"]
[Site "Salon de Provence, France"]
[Date "2024.07.10"]
[Round "7.8"]
[White "Belaid, Noa"]
[Black "Dinlemez, Karim"]
[Result "1/2-1/2"]
[WhiteElo "1594"]
[BlackElo "1517"]
[PlyCount "62"]
[EventDate "2024.??.??"]
[TimeControl "1"]

1. e4 {[%emt 0:00:00]} d6 {[%emt 0:00:00]} 2. d4 {[%emt 0:00:00]} Nf6 {[%emt 0:
00:00]} 3. Nc3 {[%emt 0:00:00]} Nbd7 {[%emt 0:00:00]} 4. f4 {[%emt 0:00:00]} e5
{[%emt 0:00:00]} 5. Nf3 {[%emt 0:00:00]} exd4 {[%emt 0:00:00]} 6. Nxd4 {
[%emt 0:00:00]} g6 {[%emt 0:10:59]} 7. Bd3 {[%emt 0:00:00]} Bg7 {[%emt 0:00:00]
} 8. Nf3 {[%emt 0:00:00]} O-O {[%emt 0:00:00]} 9. O-O {[%emt 0:00:00]} Re8 {
[%emt 0:00:00]} 10. f5 {[%emt 0:00:00]} Ne5 {[%emt 0:00:00]} 11. Nxe5 {[%emt 0:
00:00]} Rxe5 {[%emt 0:00:00]} 12. Bg5 {[%emt 0:00:00]} h6 {[%emt 0:00:00]} 13.
Bxf6 {[%emt 0:00:00]} Qxf6 {[%emt 0:00:00]} 14. fxg6 {[%emt 0:00:00]} Qxg6 {
[%emt 0:00:00]} 15. Bc4 {[%emt 0:00:00]} Be6 {[%emt 0:00:00]} 16. Bxe6 {
[%emt 0:00:00]} fxe6 {[%emt 0:00:00]} 17. Rf3 {[%emt 0:00:00]} Rg5 {[%emt 0:00:
00]} 18. Qe2 {[%emt 0:00:00]} Kh8 {[%emt 0:00:00]} 19. Raf1 {[%emt 0:00:00]}
Rg8 {[%emt 0:00:00]} 20. g3 {[%emt 0:00:00]} h5 {[%emt 0:00:00]} 21. Kh1 {
[%emt 0:00:00]} h4 {[%emt 0:00:00]} 22. Qg2 {[%emt 0:00:00]} Bxc3 {[%emt 0:00:
00]} 23. Rxc3 {[%emt 0:00:00]} hxg3 {[%emt 0:00:00]} 24. Rxg3 {[%emt 0:00:00]}
Rxg3 {[%emt 0:00:00]} 25. hxg3 {[%emt 0:00:00]} Qxg3 {[%emt 0:00:00]} 26. Qxg3
{[%emt 0:00:00]} Rxg3 {[%emt 0:00:00]} 27. Rf7 {[%emt 0:00:00]} Rh3+ {[%emt 0:
00:00]} 28. Kg2 {[%emt 0:00:00]} Rh7 {[%emt 0:00:00]} 29. Rf8+ {[%emt 0:00:00]}
Kg7 {[%emt 0:00:00]} 30. Ra8 {[%emt 0:00:00]} a6 {[%emt 0:00:00]} 31. Ra7 {
[%emt 0:00:00]} Kf6 {[%emt 0:00:00]} 1/2-1/2

[Event "Open international de Salon de Provence"]
[Site "Salon de Provence, France"]
[Date "2024.07.11"]
[Round "8.1"]
[White "Gusain, Himal"]
[Black "Dimitrov, Radoslav"]
[Result "1/2-1/2"]
[WhiteElo "2490"]
[BlackElo "2480"]
[PlyCount "63"]
[EventDate "2024.??.??"]
[TimeControl "1"]

1. e4 {[%emt 0:00:00]} g6 {[%emt 0:00:00]} 2. d4 {[%emt 0:00:00]} Bg7 {[%emt 0:
00:00]} 3. Nf3 {[%emt 0:00:00]} c6 {[%emt 0:00:00]} 4. Bd3 {[%emt 0:00:00]} d5
{[%emt 0:00:00]} 5. e5 {[%emt 0:00:00]} Bg4 {[%emt 0:00:00]} 6. Nbd2 {[%emt 0:
00:00]} f6 {[%emt 0:00:00]} 7. h3 {[%emt 0:00:00]} Bxf3 {[%emt 0:00:00]} 8.
Nxf3 {[%emt 0:00:00]} fxe5 {[%emt 0:00:00]} 9. Nxe5 {[%emt 0:00:00]} Nd7 {
[%emt 0:00:00]} 10. Bf4 {[%emt 0:00:00]} Nxe5 {[%emt 0:00:00]} 11. dxe5 {
[%emt 0:00:00]} Qc7 {[%emt 0:00:00]} 12. Qe2 {[%emt 0:00:00]} O-O-O {[%emt 0:
00:00]} 13. h4 {[%emt 0:00:00]} Rf8 {[%emt 0:00:00]} 14. Bh2 {[%emt 0:00:00]}
e6 {[%emt 0:00:00]} 15. h5 {[%emt 0:00:00]} Qb6 {[%emt 0:00:00]} 16. a4 {
[%emt 0:00:00]} Qb4+ {[%emt 0:00:00]} 17. c3 {[%emt 0:00:00]} Qh4 {[%emt 0:00:
00]} 18. g3 {[%emt 0:00:00]} Qh3 {[%emt 0:00:00]} 19. f4 {[%emt 0:00:00]} Nh6 {
[%emt 0:00:00]} 20. Qe3 {[%emt 0:00:00]} Ng4 {[%emt 0:00:00]} 21. Qxa7 {
[%emt 0:00:00]} Rxf4 {[%emt 0:00:00]} 22. O-O-O {[%emt 0:00:00]} Rf7 {[%emt 0:
00:00]} 23. Rdf1 {[%emt 0:00:00]} Rhf8 {[%emt 0:00:00]} 24. Qa8+ {[%emt 0:00:
00]} Kc7 {[%emt 0:00:00]} 25. Rxf7+ {[%emt 0:00:00]} Rxf7 {[%emt 0:00:00]} 26.
Ba6 {[%emt 0:00:00]} Nxe5 {[%emt 0:00:00]} 27. Qxb7+ {[%emt 0:00:00]} Kd8 {
[%emt 0:00:00]} 28. Qb8+ {[%emt 0:00:00]} Ke7 {[%emt 0:00:00]} 29. Qb4+ {
[%emt 0:00:00]} Kd7 {[%emt 0:00:00]} 30. g4 {[%emt 0:00:00]} Bh6+ {[%emt 0:00:
00]} 31. Kb1 {[%emt 0:00:00]} Bf4 {[%emt 0:00:00]} 32. Qb7+ {[%emt 0:00:00]}
1/2-1/2

[Event "Open international de Salon de Provence"]
[Site "Salon de Provence, France"]
[Date "2024.07.11"]
[Round "8.2"]
[White "Durand-Benmoussa, Roman"]
[Black "Enchev, Ivajlo"]
[Result "1/2-1/2"]
[WhiteElo "2001"]
[BlackElo "2416"]
[PlyCount "64"]
[EventDate "2024.??.??"]
[TimeControl "1"]

1. e4 {[%emt 0:00:00]} e5 {[%emt 0:00:00]} 2. Nf3 {[%emt 0:00:00]} Nc6 {
[%emt 0:00:00]} 3. Bb5 {[%emt 0:00:00]} a6 {[%emt 0:00:00]} 4. Ba4 {[%emt 0:00:
00]} d6 {[%emt 0:00:00]} 5. O-O {[%emt 0:00:00]} Bd7 {[%emt 0:00:00]} 6. c4 {
[%emt 0:00:00]} g5 {[%emt 0:00:00]} 7. d4 {[%emt 0:00:00]} g4 {[%emt 0:00:00]}
8. d5 {[%emt 0:00:00]} gxf3 {[%emt 0:00:00]} 9. dxc6 {[%emt 0:00:00]} bxc6 {
[%emt 0:00:00]} 10. Qxf3 {[%emt 0:00:00]} Qf6 {[%emt 0:00:00]} 11. Qb3 {
[%emt 0:00:00]} Ne7 {[%emt 0:00:00]} 12. f4 {[%emt 0:00:00]} exf4 {[%emt 0:00:
00]} 13. Bxf4 {[%emt 0:00:00]} Bg7 {[%emt 0:00:00]} 14. Qb7 {[%emt 0:00:00]}
O-O {[%emt 0:00:00]} 15. Qxc7 {[%emt 0:00:00]} Qxb2 {[%emt 0:00:00]} 16. Nd2 {
[%emt 0:00:00]} Ng6 {[%emt 0:00:00]} 17. Be3 {[%emt 0:00:00]} Bd4 {[%emt 0:00:
00]} 18. Bxd4 {[%emt 0:00:00]} Qxd4+ {[%emt 0:00:00]} 19. Kh1 {[%emt 0:00:00]}
Ra7 {[%emt 0:00:00]} 20. Qa5 {[%emt 0:00:00]} Ne5 {[%emt 0:00:00]} 21. Rad1 {
[%emt 0:00:00]} Bg4 {[%emt 0:00:00]} 22. Nf3 {[%emt 0:00:00]} Qe3 {[%emt 0:00:
00]} 23. Rde1 {[%emt 0:00:00]} Nxc4 {[%emt 0:00:00]} 24. Qb4 {[%emt 0:00:00]}
Qc5 {[%emt 0:00:00]} 25. Qxc5 {[%emt 0:00:00]} dxc5 {[%emt 0:00:00]} 26. Bxc6 {
[%emt 0:00:00]} Be6 {[%emt 0:00:00]} 27. Ng5 {[%emt 0:00:00]} h6 {[%emt 0:00:
00]} 28. Nxe6 {[%emt 0:00:00]} fxe6 {[%emt 0:00:00]} 29. Rxf8+ {[%emt 0:00:00]}
Kxf8 {[%emt 0:00:00]} 30. Rc1 {[%emt 0:00:00]} Rc7 {[%emt 0:00:00]} 31. Rxc4 {
[%emt 0:00:00]} Rxc6 {[%emt 0:00:00]} 32. g4 {[%emt 0:00:00]} Kf7 {[%emt 0:00:
00]} 1/2-1/2

[Event "Open international de Salon de Provence"]
[Site "Salon de Provence, France"]
[Date "2024.07.11"]
[Round "8.3"]
[White "Petrosyan, Armen"]
[Black "Nikolov, Momchil"]
[Result "1/2-1/2"]
[WhiteElo "2358"]
[BlackElo "2460"]
[PlyCount "91"]
[EventDate "2024.??.??"]
[TimeControl "1"]

1. e4 {[%emt 0:00:00]} c5 {[%emt 0:00:00]} 2. Nf3 {[%emt 0:00:00]} d6 {[%emt 0:
00:00]} 3. Bb5+ {[%emt 0:00:00]} Nd7 {[%emt 0:00:00]} 4. d4 {[%emt 0:00:00]}
cxd4 {[%emt 0:00:00]} 5. Nxd4 {[%emt 0:00:00]} Ngf6 {[%emt 0:00:00]} 6. Bd3 {
[%emt 0:00:00]} Nc5 {[%emt 0:00:00]} 7. Nc3 {[%emt 0:00:00]} a6 {[%emt 0:00:00]
} 8. Nb3 {[%emt 0:00:00]} b6 {[%emt 0:00:00]} 9. Nxc5 {[%emt 0:00:00]} bxc5 {
[%emt 0:00:00]} 10. O-O {[%emt 0:00:00]} e6 {[%emt 0:00:00]} 11. b3 {[%emt 0:
00:00]} Be7 {[%emt 0:00:00]} 12. Bb2 {[%emt 0:00:00]} Bb7 {[%emt 0:00:00]} 13.
Qe2 {[%emt 0:00:00]} Nd7 {[%emt 0:00:00]} 14. f4 {[%emt 0:00:00]} Bf6 {[%emt 0:
00:00]} 15. e5 {[%emt 0:00:00]} dxe5 {[%emt 0:00:00]} 16. f5 {[%emt 0:00:00]}
Qb6 {[%emt 0:00:00]} 17. fxe6 {[%emt 0:00:00]} Qxe6 {[%emt 0:14:58]} 18. Rad1 {
[%emt 0:00:00]} e4 {[%emt 0:00:00]} 19. Nxe4 {[%emt 0:00:00]} Bxe4 {[%emt 0:00:
00]} 20. Qxe4 {[%emt 0:00:00]} Qxe4 {[%emt 0:00:00]} 21. Bxe4 {[%emt 0:00:00]}
O-O-O {[%emt 0:00:00]} 22. Bxf6 {[%emt 0:00:00]} Nxf6 {[%emt 0:00:00]} 23. Bd3
{[%emt 0:00:00]} Kb7 {[%emt 0:00:00]} 24. Bc4 {[%emt 0:00:00]} Rhe8 {[%emt 0:
00:00]} 25. g3 {[%emt 0:00:00]} Rxd1 {[%emt 0:00:00]} 26. Rxd1 {[%emt 0:00:00]}
Re7 {[%emt 0:00:00]} 27. Rd6 {[%emt 0:00:00]} a5 {[%emt 0:00:00]} 28. h3 {
[%emt 0:00:00]} Re3 {[%emt 0:00:00]} 29. Rd3 {[%emt 0:00:00]} Re2 {[%emt 0:00:
00]} 30. Rc3 {[%emt 0:00:00]} Re7 {[%emt 0:00:00]} 31. Rf3 {[%emt 0:00:00]} Kc6
{[%emt 0:00:00]} 32. Rf5 {[%emt 0:00:00]} Re1+ {[%emt 0:00:00]} 33. Kg2 {
[%emt 0:00:00]} Rc1 {[%emt 0:00:00]} 34. Bd3 {[%emt 0:00:00]} Ra1 {[%emt 0:00:
00]} 35. a4 {[%emt 0:00:00]} Re1 {[%emt 0:00:00]} 36. g4 {[%emt 0:00:00]} h6 {
[%emt 0:00:00]} 37. Kf3 {[%emt 0:00:00]} Kd6 {[%emt 0:00:00]} 38. h4 {[%emt 0:
00:00]} Rg1 {[%emt 0:00:00]} 39. g5 {[%emt 0:00:00]} hxg5 {[%emt 0:00:00]} 40.
hxg5 {[%emt 0:00:00]} Ng4 {[%emt 0:00:00]} 41. Kf4 {[%emt 0:00:00]} f6 {
[%emt 0:00:00]} 42. Bc4 {[%emt 0:00:00]} Ne5 {[%emt 0:00:00]} 43. gxf6 {
[%emt 0:00:00]} Rg4+ {[%emt 0:00:00]} 44. Ke3 {[%emt 0:00:00]} Nxc4+ {[%emt 0:
00:00]} 45. bxc4 {[%emt 0:00:00]} gxf6 {[%emt 0:00:00]} 46. Rxf6+ {[%emt 0:00:
00]} 1/2-1/2

[Event "Open international de Salon de Provence"]
[Site "Salon de Provence, France"]
[Date "2024.07.11"]
[Round "8.4"]
[White "Philippe, Guillaume"]
[Black "Lalic, Bogdan"]
[Result "1/2-1/2"]
[WhiteElo "2359"]
[BlackElo "2358"]
[PlyCount "44"]
[EventDate "2024.??.??"]
[TimeControl "1"]

1. Nf3 {[%emt 0:00:00]} d5 {[%emt 0:00:00]} 2. e3 {[%emt 0:00:00]} Nf6 {
[%emt 0:00:00]} 3. c4 {[%emt 0:00:00]} c6 {[%emt 0:00:00]} 4. Nc3 {[%emt 0:00:
00]} e6 {[%emt 0:00:00]} 5. b3 {[%emt 0:00:00]} Nbd7 {[%emt 0:00:00]} 6. Bb2 {
[%emt 0:00:00]} Bd6 {[%emt 0:00:00]} 7. d4 {[%emt 0:00:00]} O-O {[%emt 0:00:00]
} 8. Bd3 {[%emt 0:00:00]} e5 {[%emt 0:00:00]} 9. cxd5 {[%emt 0:00:00]} cxd5 {
[%emt 0:00:00]} 10. dxe5 {[%emt 0:00:00]} Nxe5 {[%emt 0:00:00]} 11. Be2 {
[%emt 0:00:00]} Nxf3+ {[%emt 0:00:00]} 12. Bxf3 {[%emt 0:00:00]} Be6 {[%emt 0:
00:00]} 13. O-O {[%emt 0:00:00]} Be5 {[%emt 0:00:00]} 14. Qd2 {[%emt 0:00:00]}
Qa5 {[%emt 0:00:00]} 15. Rfd1 {[%emt 0:00:00]} Rfd8 {[%emt 0:00:00]} 16. Ne2 {
[%emt 0:00:00]} Qxd2 {[%emt 0:00:00]} 17. Rxd2 {[%emt 0:00:00]} Bxb2 {[%emt 0:
00:00]} 18. Rxb2 {[%emt 0:00:00]} Rac8 {[%emt 0:00:00]} 19. Rd1 {[%emt 0:00:00]
} Bg4 {[%emt 0:00:00]} 20. Rbd2 {[%emt 0:00:00]} Bxf3 {[%emt 0:00:00]} 21. gxf3
{[%emt 0:00:00]} Rd7 {[%emt 0:00:00]} 22. Nf4 {[%emt 0:00:00]} Ra8 {[%emt 0:00:
26]} 1/2-1/2

[Event "Open international de Salon de Provence"]
[Site "Salon de Provence, France"]
[Date "2024.07.11"]
[Round "8.5"]
[White "Vrillet, Loan"]
[Black "Rival, None"]
[Result "0-1"]
[WhiteElo "1676"]
[BlackElo "1640"]
[PlyCount "58"]
[EventDate "2024.??.??"]
[TimeControl "1"]

1. e4 {[%emt 0:00:00]} c5 {[%emt 0:00:00]} 2. Nf3 {[%emt 0:00:00]} Nc6 {
[%emt 0:00:00]} 3. d4 {[%emt 0:00:00]} cxd4 {[%emt 0:00:00]} 4. Nxd4 {[%emt 0:
00:00]} Nf6 {[%emt 0:00:00]} 5. Nc3 {[%emt 0:00:00]} e5 {[%emt 0:00:00]} 6.
Ndb5 {[%emt 0:00:00]} d6 {[%emt 0:00:00]} 7. Bg5 {[%emt 0:00:00]} a6 {[%emt 0:
00:00]} 8. Na3 {[%emt 0:00:00]} b5 {[%emt 0:00:00]} 9. Nd5 {[%emt 0:00:00]} Be7
{[%emt 0:00:00]} 10. Bxf6 {[%emt 0:00:00]} Bxf6 {[%emt 0:00:00]} 11. c3 {
[%emt 0:00:00]} O-O {[%emt 0:00:00]} 12. Nc2 {[%emt 0:00:00]} Rb8 {[%emt 0:00:
00]} 13. Bd3 {[%emt 0:00:00]} Bg5 {[%emt 0:00:00]} 14. h4 {[%emt 0:00:00]} Bh6
{[%emt 0:00:00]} 15. g4 {[%emt 0:00:00]} f6 {[%emt 0:00:00]} 16. Qf3 {[%emt 0:
00:00]} a5 {[%emt 0:00:00]} 17. a3 {[%emt 0:00:00]} Be6 {[%emt 0:00:00]} 18.
Qe2 {[%emt 0:00:00]} Ne7 {[%emt 0:00:00]} 19. Rd1 {[%emt 0:00:00]} Kh8 {
[%emt 0:00:00]} 20. Bxb5 {[%emt 0:00:00]} Nxd5 {[%emt 0:00:00]} 21. Rxd5 {
[%emt 0:00:00]} Bxd5 {[%emt 0:00:00]} 22. exd5 {[%emt 0:00:00]} Qb6 {[%emt 0:
00:00]} 23. a4 {[%emt 0:00:00]} Bf4 {[%emt 0:00:00]} 24. h5 {[%emt 0:00:00]}
Qc5 {[%emt 0:00:00]} 25. Qe4 {[%emt 0:00:00]} Rxb5 {[%emt 0:00:00]} 26. axb5 {
[%emt 0:00:00]} Qxb5 {[%emt 0:00:00]} 27. b4 {[%emt 0:00:00]} Rc8 {[%emt 0:00:
00]} 28. Qf3 {[%emt 0:00:00]} Qa4 {[%emt 0:00:00]} 29. Qd3 {[%emt 0:00:00]}
axb4 {[%emt 0:00:00]} 0-1

[Event "Open international de Salon de Provence"]
[Site "Salon de Provence, France"]
[Date "2024.07.11"]
[Round "8.6"]
[White "Bicais, Noam"]
[Black "Tarisse, Mateo"]
[Result "1/2-1/2"]
[WhiteElo "1603"]
[BlackElo "1636"]
[PlyCount "109"]
[EventDate "2024.??.??"]
[TimeControl "1"]

1. e4 {[%emt 0:00:00]} e6 {[%emt 0:00:00]} 2. d4 {[%emt 0:00:00]} d5 {[%emt 0:
00:00]} 3. Nc3 {[%emt 0:00:00]} Nf6 {[%emt 0:00:00]} 4. Bg5 {[%emt 0:00:00]}
Be7 {[%emt 0:00:00]} 5. e5 {[%emt 0:00:00]} Nfd7 {[%emt 0:00:00]} 6. Bxe7 {
[%emt 0:00:00]} Qxe7 {[%emt 0:00:00]} 7. Nb5 {[%emt 0:00:00]} Nb6 {[%emt 0:00:
00]} 8. c3 {[%emt 0:00:00]} a6 {[%emt 0:00:00]} 9. Na3 {[%emt 0:00:00]} c5 {
[%emt 0:00:00]} 10. Nc2 {[%emt 0:00:00]} Nc6 {[%emt 0:00:00]} 11. a3 {[%emt 0:
00:00]} c4 {[%emt 0:00:00]} 12. Nf3 {[%emt 0:00:00]} Na5 {[%emt 0:00:00]} 13.
Nd2 {[%emt 0:00:00]} Bd7 {[%emt 0:00:00]} 14. Ne3 {[%emt 0:00:00]} O-O {
[%emt 0:00:00]} 15. Qg4 {[%emt 0:00:00]} Ba4 {[%emt 0:00:00]} 16. Be2 {[%emt 0:
00:00]} Qd7 {[%emt 0:00:00]} 17. Bd1 {[%emt 0:00:00]} Qb5 {[%emt 0:00:00]} 18.
Rb1 {[%emt 0:00:00]} Nb3 {[%emt 0:00:00]} 19. Nxb3 {[%emt 0:02:42]} Bxb3 {
[%emt 0:00:00]} 20. Bxb3 {[%emt 0:00:00]} Qxb3 {[%emt 0:00:00]} 21. Qd1 {
[%emt 0:00:00]} Qb5 {[%emt 0:00:00]} 22. f4 {[%emt 0:00:00]} Na4 {[%emt 0:00:
00]} 23. Kd2 {[%emt 0:00:00]} a5 {[%emt 0:00:00]} 24. g4 {[%emt 0:00:00]} Ra6 {
[%emt 0:00:00]} 25. Qc2 {[%emt 0:00:00]} Rb6 {[%emt 0:00:00]} 26. Kc1 {[%emt 0:
00:00]} Qb3 {[%emt 0:00:00]} 27. h4 {[%emt 0:00:00]} Rc8 {[%emt 0:00:00]} 28.
g5 {[%emt 0:00:00]} Qxc2+ {[%emt 0:03:32]} 29. Kxc2 {[%emt 0:00:00]} Rb3 {
[%emt 0:00:00]} 30. Nd1 {[%emt 0:00:00]} b5 {[%emt 0:00:00]} 31. h5 {[%emt 0:
00:00]} b4 {[%emt 0:00:00]} 32. axb4 {[%emt 0:00:00]} axb4 {[%emt 0:00:00]} 33.
Ra1 {[%emt 0:00:00]} Ra8 {[%emt 0:00:00]} 34. h6 {[%emt 0:00:00]} g6 {[%emt 0:
00:00]} 35. Rh2 {[%emt 0:00:00]} Kf8 {[%emt 0:00:00]} 36. Kc1 {[%emt 0:00:00]}
Ke7 {[%emt 0:00:00]} 37. cxb4 {[%emt 0:00:00]} Rxb4 {[%emt 0:00:00]} 38. Nc3 {
[%emt 0:00:00]} Kd7 {[%emt 0:00:00]} 39. Rxa4 {[%emt 0:00:00]} Rbxa4 {[%emt 0:
00:00]} 40. Nxa4 {[%emt 0:00:00]} Rxa4 {[%emt 0:00:00]} 41. Rh3 {[%emt 0:00:00]
} Kc6 {[%emt 0:00:00]} 42. b3 {[%emt 0:00:00]} cxb3 {[%emt 0:00:00]} 43. Rc3+ {
[%emt 0:00:00]} Kb5 {[%emt 0:00:00]} 44. Rxb3+ {[%emt 0:00:00]} Kc4 {[%emt 0:
00:00]} 45. Rb7 {[%emt 0:00:00]} Kxd4 {[%emt 0:00:00]} 46. Rxf7 {[%emt 0:00:00]
} Ke3 {[%emt 0:00:00]} 47. Rxh7 {[%emt 0:00:00]} Rxf4 {[%emt 0:00:00]} 48. Rg7
{[%emt 0:00:00]} Ke4 {[%emt 0:00:00]} 49. Rxg6 {[%emt 0:00:00]} Rh4 {[%emt 0:
00:00]} 50. Rxe6 {[%emt 0:00:00]} Kf5 {[%emt 0:00:00]} 51. Re8 {[%emt 0:00:00]}
Kxg5 {[%emt 0:00:00]} 52. e6 {[%emt 0:00:00]} Kf6 {[%emt 0:00:00]} 53. e7 {
[%emt 0:00:00]} Rxh6 {[%emt 0:00:00]} 54. Rd8 {[%emt 0:00:00]} Kxe7 {[%emt 0:
00:00]} 55. Rxd5 {[%emt 0:00:00]} 1/2-1/2

[Event "Open international de Salon de Provence"]
[Site "Salon de Provence, France"]
[Date "2024.07.11"]
[Round "8.7"]
[White "Madi, Chahinez"]
[Black "Metzger, Raphael"]
[Result "1/2-1/2"]
[WhiteElo "1687"]
[BlackElo "1601"]
[PlyCount "91"]
[EventDate "2024.??.??"]
[TimeControl "1"]

1. e4 {[%emt 0:00:00]} e5 {[%emt 0:00:00]} 2. Nf3 {[%emt 0:00:00]} Nc6 {
[%emt 0:00:00]} 3. Bb5 {[%emt 0:00:00]} Nf6 {[%emt 0:00:00]} 4. O-O {[%emt 0:
00:00]} Nxe4 {[%emt 0:00:00]} 5. Re1 {[%emt 0:00:00]} Nd6 {[%emt 0:00:00]} 6.
Nxe5 {[%emt 0:00:00]} Nxe5 {[%emt 0:00:00]} 7. Rxe5+ {[%emt 0:00:00]} Be7 {
[%emt 0:00:00]} 8. Ba4 {[%emt 0:00:00]} O-O {[%emt 0:00:00]} 9. d4 {[%emt 0:00:
00]} Bf6 {[%emt 0:00:00]} 10. Re1 {[%emt 0:00:00]} Nf5 {[%emt 0:00:00]} 11. c3
{[%emt 0:00:00]} d5 {[%emt 0:00:00]} 12. Nd2 {[%emt 0:00:00]} c6 {[%emt 0:00:
00]} 13. Nf3 {[%emt 0:00:00]} Nd6 {[%emt 0:00:00]} 14. Ne5 {[%emt 0:00:00]} Bf5
{[%emt 0:00:00]} 15. Bf4 {[%emt 0:00:00]} Bxe5 {[%emt 0:00:00]} 16. dxe5 {
[%emt 0:00:00]} Nc4 {[%emt 0:00:00]} 17. Qc1 {[%emt 0:00:00]} Re8 {[%emt 0:00:
00]} 18. Bc2 {[%emt 0:00:00]} Bxc2 {[%emt 0:00:00]} 19. Qxc2 {[%emt 0:00:00]}
Re6 {[%emt 0:00:00]} 20. b3 {[%emt 0:00:00]} Nb6 {[%emt 0:00:00]} 21. Rad1 {
[%emt 0:00:00]} Qe7 {[%emt 0:00:00]} 22. Rd3 {[%emt 0:00:00]} Nd7 {[%emt 0:00:
00]} 23. Rde3 {[%emt 0:00:00]} Re8 {[%emt 0:00:00]} 24. Qe2 {[%emt 0:00:00]}
Qa3 {[%emt 0:00:00]} 25. h3 {[%emt 0:00:00]} Nc5 {[%emt 0:00:00]} 26. Qc2 {
[%emt 0:00:00]} Qa6 {[%emt 0:00:00]} 27. Rd1 {[%emt 0:00:00]} b5 {[%emt 0:00:
00]} 28. c4 {[%emt 0:00:00]} bxc4 {[%emt 0:00:00]} 29. bxc4 {[%emt 0:00:00]}
Qxc4 {[%emt 0:00:00]} 30. Qxc4 {[%emt 0:00:00]} dxc4 {[%emt 0:00:00]} 31. Rc3 {
[%emt 0:00:00]} Na4 {[%emt 0:00:00]} 32. Ra3 {[%emt 0:00:00]} Nb2 {[%emt 0:00:
00]} 33. Rd6 {[%emt 0:00:00]} Nd3 {[%emt 0:00:00]} 34. Bg3 {[%emt 0:00:00]}
Nxe5 {[%emt 0:00:00]} 35. Bxe5 {[%emt 0:00:00]} Rxe5 {[%emt 0:00:00]} 36. Rxc6
{[%emt 0:00:00]} Re1+ {[%emt 0:00:00]} 37. Kh2 {[%emt 0:01:12]} Rc1 {[%emt 0:
00:00]} 38. Rxa7 {[%emt 0:00:00]} g6 {[%emt 0:00:00]} 39. a4 {[%emt 0:00:00]}
Rc2 {[%emt 0:00:00]} 40. Kg3 {[%emt 0:00:00]} Re6 {[%emt 0:00:00]} 41. Rxe6 {
[%emt 0:00:00]} fxe6 {[%emt 0:00:00]} 42. Rc7 {[%emt 0:00:00]} c3 {[%emt 0:00:
00]} 43. Kh2 {[%emt 0:00:00]} Ra2 {[%emt 0:00:00]} 44. Rxc3 {[%emt 0:00:00]}
Rxa4 {[%emt 0:00:00]} 45. Re3 {[%emt 0:00:00]} Kf7 {[%emt 0:00:00]} 46. Kg3 {
[%emt 0:00:00]} 1/2-1/2

[Event "Open international de Salon de Provence"]
[Site "Salon de Provence, France"]
[Date "2024.07.11"]
[Round "8.8"]
[White "Maltsev, Nikita"]
[Black "Belaid, Noa"]
[Result "0-1"]
[WhiteElo "1552"]
[BlackElo "1594"]
[PlyCount "118"]
[EventDate "2024.??.??"]
[TimeControl "1"]

1. d4 {[%emt 0:00:00]} Nf6 {[%emt 0:00:00]} 2. c4 {[%emt 0:00:00]} g6 {[%emt 0:
00:00]} 3. Nc3 {[%emt 0:00:00]} d5 {[%emt 0:00:00]} 4. cxd5 {[%emt 0:00:00]}
Nxd5 {[%emt 0:00:00]} 5. e4 {[%emt 0:00:00]} Nxc3 {[%emt 0:00:00]} 6. bxc3 {
[%emt 0:00:00]} Bg7 {[%emt 0:00:00]} 7. Nf3 {[%emt 0:00:00]} O-O {[%emt 0:00:
00]} 8. Be2 {[%emt 0:00:00]} Re8 {[%emt 0:00:00]} 9. O-O {[%emt 0:00:00]} e5 {
[%emt 0:00:00]} 10. d5 {[%emt 0:00:00]} Nd7 {[%emt 0:00:00]} 11. Ba3 {[%emt 0:
00:00]} Nb6 {[%emt 0:00:00]} 12. c4 {[%emt 0:00:00]} f5 {[%emt 0:00:00]} 13.
Nd2 {[%emt 0:00:00]} fxe4 {[%emt 0:00:00]} 14. Nxe4 {[%emt 0:00:00]} Qh4 {
[%emt 0:00:00]} 15. Nd2 {[%emt 0:00:00]} e4 {[%emt 0:00:00]} 16. Rb1 {[%emt 0:
00:00]} Qg5 {[%emt 0:00:00]} 17. Kh1 {[%emt 0:00:00]} e3 {[%emt 0:00:00]} 18.
Nf3 {[%emt 0:00:00]} Qf4 {[%emt 0:00:00]} 19. g3 {[%emt 0:00:00]} Qf6 {[%emt 0:
00:00]} 20. Bb2 {[%emt 0:00:00]} Qe7 {[%emt 0:00:00]} 21. Bxg7 {[%emt 0:00:00]}
Kxg7 {[%emt 0:00:00]} 22. Qd4+ {[%emt 0:00:00]} Kg8 {[%emt 0:00:00]} 23. fxe3 {
[%emt 0:00:00]} Qxe3 {[%emt 0:00:00]} 24. Qxe3 {[%emt 0:00:00]} Rxe3 {[%emt 0:
00:00]} 25. Rbe1 {[%emt 0:00:00]} Bg4 {[%emt 0:00:00]} 26. Kg2 {[%emt 0:00:00]}
Rae8 {[%emt 0:00:00]} 27. Kf2 {[%emt 0:00:00]} Bxf3 {[%emt 0:00:00]} 28. Bxf3 {
[%emt 0:00:00]} Rxe1 {[%emt 0:00:00]} 29. Rxe1 {[%emt 0:00:00]} Rxe1 {[%emt 0:
00:00]} 30. Kxe1 {[%emt 0:00:00]} Nxc4 {[%emt 0:00:00]} 31. Ke2 {[%emt 0:00:00]
} Kf7 {[%emt 0:00:00]} 32. Kd3 {[%emt 0:00:00]} Ne5+ {[%emt 0:00:00]} 33. Ke3 {
[%emt 0:00:00]} Nxf3 {[%emt 0:00:00]} 34. Kxf3 {[%emt 0:00:00]} Kf6 {[%emt 0:
00:00]} 35. Kf4 {[%emt 0:00:00]} b5 {[%emt 0:00:00]} 36. h3 {[%emt 0:00:00]} a5
{[%emt 0:00:00]} 37. Ke4 {[%emt 0:00:00]} Ke7 {[%emt 0:00:00]} 38. Kd3 {
[%emt 0:00:00]} Kd6 {[%emt 0:00:00]} 39. Kd4 {[%emt 0:00:00]} g5 {[%emt 0:00:
00]} 40. g4 {[%emt 0:00:00]} h6 {[%emt 0:00:00]} 41. a3 {[%emt 0:00:00]} a4 {
[%emt 0:00:00]} 42. Ke4 {[%emt 0:00:00]} b4 {[%emt 0:00:00]} 43. Kd4 {[%emt 0:
00:00]} b3 {[%emt 0:00:00]} 44. Kc3 {[%emt 0:00:00]} Kxd5 {[%emt 0:00:00]} 45.
Kb2 {[%emt 0:00:00]} Ke4 {[%emt 0:00:00]} 46. Ka1 {[%emt 0:00:00]} Kf3 {
[%emt 0:00:00]} 47. Kb1 {[%emt 0:00:00]} Kg3 {[%emt 0:00:00]} 48. Kb2 {[%emt 0:
00:00]} Kxh3 {[%emt 0:00:00]} 49. Ka1 {[%emt 0:00:00]} Kxg4 {[%emt 0:00:00]}
50. Kb1 {[%emt 0:00:00]} h5 {[%emt 0:00:00]} 51. Kb2 {[%emt 0:00:00]} h4 {
[%emt 0:00:00]} 52. Ka1 {[%emt 0:00:00]} h3 {[%emt 0:00:00]} 53. Kb1 {[%emt 0:
00:00]} h2 {[%emt 0:00:00]} 54. Kb2 {[%emt 0:00:00]} h1=Q {[%emt 0:00:00]} 55.
Kc3 {[%emt 0:00:00]} Qe4 {[%emt 0:00:00]} 56. Kd2 {[%emt 0:00:00]} Kf3 {
[%emt 0:00:00]} 57. Kc3 {[%emt 0:00:00]} g4 {[%emt 0:00:00]} 58. Kd2 {[%emt 0:
00:00]} Qc2+ {[%emt 0:00:00]} 59. Ke1 {[%emt 0:00:00]} Qe2# {[%emt 0:00:00]}
0-1